fUSD/lending_fUSD_20251001
["ID","MTS","AMOUNT","RATE_DAILY","PERIOD"]
[388632575,1759277450092,-300.0,0.0002487,2]
[388632576,1759277450102,-400.0,0.0002487,2]
[388632577,1759277450113,-28599.19,0.000249,2]
[388632578,1759277450123,-48950.82975534,0.000249,7]
[388632579,1759277450134,-26195.80189138,0.000249,7]
[388632580,1759277450146,-2034.143293,0.000249,7]
[388632581,1759277450255,-194.730521,0.00021918,2]
[388632582,1759277450264,-105.269479,0.00023039,7]
[388632583,1759277450276,-45.730521,0.00023039,7]
[388632584,1759277450286,-403.49908025,0.000249,7]
[388632585,1759277450298,-3575.05142359,0.000249,7]
[388632586,1759277450336,-157.459949,0.000225,7]
[388632587,1759277450346,-2358.37858501,0.000249,7]
[388632588,1759277450358,-2741.16468483,0.000249,7]
[388632589,1759277450369,-484.49668922,0.000249,7]
[388632590,1759277451711,173.943432,0.0001726,2]
[388632591,1759277455123,-1300.0,0.00018719,2]
[388632592,1759277455135,-1757.7301762,0.00018719,2]
[388632593,1759277455147,-1143.75918069,0.00018719,2]
[388632594,1759277455158,-1342.29539834,0.00018719,2]
[388632595,1759277455169,-634.6,0.00018719,2]
[388632596,1759277455180,-733.34319567,0.00018719,2]
[388632597,1759277455193,-7407.99859993,0.00018719,2]
[388632598,1759277455206,-4599.27344917,0.00018719,2]
[388632599,1759277455215,-173.943432,0.00019232,2]
[388632600,1759277455225,-25622.119252,0.000209,2]
[388632601,1759277455235,-272.42802083,0.000209,2]
[388632602,1759277455247,-12127.9736372,0.000209,2]
[388632603,1759277455258,-628.73244732,0.000209,2]
[388632604,1759277455270,-967.54661949,0.000209,2]
[388632605,1759277455323,-160476.89984539,0.000209,2]
[388632606,1759277455335,-917.54511471,0.000209,2]
[388632607,1759277455347,-1072.35,0.000209,2]
[388632608,1759277455359,-3592.07926677,0.000209,2]
[388632609,1759277455371,-261.52156641,0.000209,2]
[388632610,1759277455382,-4712.62579405,0.000209,2]
[388632611,1759277455420,-3782.26778049,0.000209,2]
[388632612,1759277456680,-1034.355,0.000209,2]
[388632613,1759277456692,-3502.39183922,0.000209,2]
[388632614,1759277456703,-2860.95238278,0.000209,2]
[388632615,1759277456714,-13102.812,0.000209,2]
[388632616,1759277456726,-453.91755759,0.000209,2]
[388632617,1759277456737,-335402.55940601,0.000209,2]
[388632618,1759277456749,-980.40488414,0.000209,2]
[388632619,1759277456838,-625.42636932,0.000209,2]
[388632620,1759277457168,-32.66177424,0.000209,2]
[388632621,1759277457181,-525.03666988,0.000209,2]
[388632622,1759277457195,-4515.4846509,0.000209,2]
[388632623,1759277457207,-476.1899999,0.000209,2]
[388632624,1759277457218,-6482.1591775,0.000209,2]
[388632625,1759277457229,-430.58292237,0.000209,2]
[388632626,1759277457240,-1592.11076625,0.000209,2]
[388632627,1759277457251,-1141.597534,0.000209,2]
[388632628,1759277457296,-5122.12676512,0.000209,2]
[388632629,1759277457308,-2566.73593439,0.000209,2]
[388632630,1759277457319,-43525.58431961,0.000209,2]
[388632631,1759277457330,-14661.15608252,0.000209,2]
[388632632,1759277459801,-813.85605305,0.000209,2]
[388632633,1759277459812,-1328.02856596,0.000209,2]
[388632634,1759277461485,-355.14604916,0.000209,2]
[388632635,1759277461658,-16877.7329558,0.000209,2]
[388632636,1759277461670,-336.03721991,0.000209,2]
[388632637,1759277461683,-1065.71839982,0.000209,2]
[388632638,1759277461717,-5859.05321084,0.000209,2]
[388632639,1759277461729,-16887.68498501,0.000209,2]
[388632640,1759277461741,-5008.6315862,0.000209,2]
[388632641,1759277463390,-151438.64391717,0.000209,2]
[388632642,1759277463400,-151.0,0.0002106,2]
[388632643,1759277463408,-151.0,0.0002106,2]
[388632644,1759277463417,-288.780252,0.0002106,2]
[388632645,1759277463427,-151.0,0.0002106,2]
[388632646,1759277463436,-151.0,0.0002106,2]
[388632647,1759277463446,-731.76803,0.0002106,2]
[388632648,1759277463455,-151.0,0.0002106,2]
[388632649,1759277463464,-151.0,0.0002106,2]
[388632650,1759277463473,-731.76803,0.0002106,2]
[388632651,1759277463482,-731.76803,0.0002106,2]
[388632652,1759277463491,-18919.0,0.00021719,2]
[388632653,1759277463500,-194.730521,0.00021918,7]
[388632654,1759277463509,-156.014037,0.00021918,7]
[388632655,1759277463519,-151.0,0.00021918,7]
[388632656,1759277463528,-151.0,0.00021918,7]
[388632657,1759277463537,-151.0,0.00021918,7]
[388632658,1759277463546,-731.76803,0.00021918,7]
[388632659,1759277463555,-151.0,0.00021918,7]
[388632660,1759277463565,-151.0,0.00021918,7]
[388632661,1759277463574,-731.76803,0.00021918,7]
[388632662,1759277463583,-922.29,0.00022,2]
[388632663,1759277463594,-194.730521,0.000225,7]
[388632664,1759277463603,-151.0,0.000225,7]
[388632665,1759277463612,-151.0,0.000225,7]
[388632666,1759277463621,-151.0,0.000225,7]
[388632667,1759277463630,-731.76803,0.000225,7]
[388632668,1759277463639,-199.504521,0.000225,7]
[388632669,1759277463648,-151.0,0.000225,7]
[388632670,1759277463657,-731.76803,0.000225,7]
[388632671,1759277463667,-194.730521,0.00023039,7]
[388632672,1759277463676,-151.0,0.00023039,7]
[388632673,1759277463685,-151.0,0.00023039,7]
[388632674,1759277463693,-151.0,0.00023039,7]
[388632675,1759277463702,-731.76803,0.00023039,7]
[388632676,1759277463711,-151.0,0.00023039,7]
[388632677,1759277463720,-731.76803,0.00023039,7]
[388632678,1759277463729,-151.0,0.000232,7]
[388632679,1759277463738,-194.730523,0.000232,7]
[388632680,1759277463747,-151.0,0.000232,7]
[388632681,1759277463756,-151.0,0.000232,7]
[388632682,1759277463765,-202.293544,0.000232,7]
[388632683,1759277463774,-731.76803,0.000232,7]
[388632684,1759277463783,-151.0,0.000232,7]
[388632685,1759277463792,-731.76803,0.000232,7]
[388632686,1759277463801,-922.29,0.00023371,2]
[388632687,1759277463810,-18919.0,0.00024719,2]
[388632688,1759277463819,-922.29,0.00024742,2]
[388632689,1759277463828,-31059.63294574,0.000249,7]
[388632690,1759277463839,-6535.93704643,0.000249,7]
[388632691,1759277463854,-3742.20656364,0.000249,7]
[388632692,1759277463865,-911.56991,0.000249,7]
[388632693,1759277463876,-599.8800003,0.000249,7]
[388632694,1759277466611,-301.34359072,0.0001726,2]
[388632695,1759277468582,-235.62021938,0.0001726,2]
[388632696,1759277474244,-278.71187424,0.0001726,2]
[388632697,1759277476052,-171.0,0.0001726,2]
[388632698,1759277480736,-237.35233599,0.0001726,2]
[388632699,1759277483740,-235.37709007,0.0001726,2]
[388632700,1759277489671,-194.51279411,0.0001726,2]
[388632701,1759277493530,-243.90419458,0.0001726,2]
[388632702,1759277495484,-331.51669991,0.0001726,2]
[388632703,1759277495511,-23.62934925,0.0001726,2]
[388632704,1759277498698,-160.63325505,0.0001726,2]
[388632705,1759277503810,-207.45875155,0.0001726,2]
[388632706,1759277505092,-235.62021938,0.0001726,2]
[388632707,1759277505766,-181.39,0.0001726,2]
[388632708,1759277508544,-288.54812668,0.0001726,2]
[388632709,1759277509332,-16.36808109,0.0001726,2]
[388632710,1759277509724,-513.45846731,0.00017753,2]
[388632711,1759277511376,-241.27842172,0.00017753,2]
[388632712,1759277511745,-224.91034063,0.00017753,2]
[388632713,1759277514690,-355.14604916,0.00017753,2]
[388632714,1759277690918,159.99,0.00010756,2]
[388632715,1759277691121,159.99,0.00011951,2]
[388632716,1759277691339,159.99,0.00013146,2]
[388632717,1759277691646,159.99,0.00014342,2]
[388632718,1759277691842,159.99,0.00015537,2]
[388632719,1759277834410,-159.99,0.00016732,2]
[388632720,1759277834434,-64.92034063,0.00016987,2]
[388632721,1759277836603,-513.45846731,0.00016987,2]
[388632722,1759277840070,-355.14604916,0.00016987,2]
[388632723,1759277842196,-241.27842172,0.00016987,2]
[388632724,1759278224176,-195.0,0.00017115,2]
[388632725,1759278224199,-20.18581851,0.00017374,2]
[388632726,1759278225707,-172.18632861,0.00017374,2]
[388632727,1759278229479,-11.10089875,0.00017374,2]
[388632728,1759278229505,-151.1070068,0.00017381,2]
[388632729,1759278231550,-238.27098339,0.00017381,2]
[388632730,1759278344772,-167.05310542,0.00017381,2]
[388632731,1759278349999,-169.0,0.00017381,2]
[388632732,1759278352215,-216.5065484,0.00017381,2]
[388632733,1759278353754,-292.26581528,0.00017381,2]
[388632734,1759278353777,-166.29525586,0.0001739,2]
[388632735,1759278358655,-11.57198898,0.0001739,2]
[388632736,1759278358678,-203.47304587,0.00017391,2]
[388632737,1759278358700,-150.44841675,0.00017396,2]
[388632738,1759278363959,-73.30125045,0.00017396,2]
[388632739,1759278363984,-309.51813282,0.00017399,2]
[388632740,1759278364008,-117.18061673,0.00017399,2]
[388632741,1759278365727,-106.56905047,0.00017399,2]
[388632742,1759278365754,-70.29749793,0.0001741,2]
[388632743,1759278366845,-291.0,0.0001741,2]
[388632744,1759278370915,-221.43037031,0.0001741,2]
[388632745,1759278373403,-409.30304659,0.0001741,2]
[388632746,1759278378505,-221.43037031,0.00016987,2]
[388632747,1759278381240,-38.71562969,0.00016987,2]
[388632754,1759278475698,-370.5874169,0.00017,2]
[388632755,1759278480146,-176.8665484,0.00017,2]
[388632756,1759278482104,-323.1334516,0.00017,2]
[388632757,1759278483467,-312.41869605,0.00017,2]
[388632758,1759278486140,-187.58130395,0.00017,2]
[388632759,1759278488850,-291.0,0.00017,2]
[388632760,1759278490243,-379.81563075,0.00017,2]
[388632761,1759278493688,-223.7496672,0.00017,2]
[388632762,1759278524838,-193.3069032,0.00017,2]
[388632763,1759278533141,-500.0,0.00017,2]
[388632764,1759278558900,-282.89101415,0.000169,2]
[388632765,1759278563844,-251.16849529,0.000169,2]
[388632766,1759278565035,-1951.968,0.000185,5]
[388632767,1759278568423,-203.47304587,0.000169,2]
[388632768,1759278570517,-163.54779709,0.000169,2]
[388632769,1759278570539,-5.45220291,0.00016915,2]
[388632770,1759278574517,-167.05310542,0.00016915,2]
[388632771,1759278576037,-238.27098339,0.00016915,2]
[388632772,1759278578089,-151.1070068,0.00016915,2]
[388632773,1759278580877,-216.5065484,0.00016915,2]
[388632774,1759278582602,-292.26581528,0.00016915,2]
[388632775,1759278588277,-152.4777888,0.00016915,2]
[388632776,1759278596369,-150.0,0.000185,5]
[388632777,1759278617945,-192.49089875,0.000169,2]
[388632778,1759278622340,-249.84927135,0.000169,2]
[388632786,1759278632919,-1200.0,0.00016999,2]
[388632787,1759278632928,-300.0,0.00016999,2]
[388632788,1759278632938,-335.25799297,0.00016999,2]
[388632789,1759278632950,-214.74200703,0.00016999,2]
[388632790,1759278632959,-85.24799297,0.00017,2]
[388632791,1759278632992,-214.75200703,0.00017,2]
[388632792,1759278633001,-72.68802801,0.00017,2]
[388632793,1759278633055,-228697.43354273,0.00017,2]
[388632794,1759278633065,-250.0,0.00017,2]
[388632795,1759278633075,-300.0,0.00017254,2]
[388632796,1759278633085,-2143.594999,0.0001726,2]
[388632797,1759278633094,-1070.815176,0.0001726,2]
[388632798,1759278633105,-2515.158291,0.0001726,2]
[388632799,1759278633118,-150.820849,0.0001726,2]
[388632800,1759278633128,-237.06917842,0.00017374,2]
[388632801,1759278633137,-189.36120107,0.00017386,2]
[388632802,1759278633147,-189.36120107,0.00017402,2]
[388632803,1759278633156,-237.06917842,0.00017404,2]
[388632804,1759278633166,-237.06917842,0.00017405,2]
[388632805,1759278633176,-242.17254446,0.0001741,2]
[388632806,1759278633185,-309.51813282,0.00017415,2]
[388632807,1759278633194,-177.86724484,0.00017415,2]
[388632808,1759278633205,-237.06917842,0.00017416,2]
[388632809,1759278633215,-309.51813282,0.00017426,2]
[388632810,1759278633224,-223.7496672,0.00017439,2]
[388632811,1759278633234,-309.51813282,0.00017441,2]
[388632812,1759278633243,-223.7496672,0.00017445,2]
[388632813,1759278633252,-203.47304587,0.00017446,2]
[388632814,1759278633262,-223.7496672,0.00017449,2]
[388632815,1759278633270,-203.47304587,0.00017465,2]
[388632816,1759278633280,-237.06917842,0.00017469,2]
[388632817,1759278633289,-1234.20345929,0.00017477,2]
[388632818,1759278633298,-177.86724484,0.00017479,2]
[388632819,1759278633307,-189.36120107,0.00017479,2]
[388632820,1759278633316,-189.36120107,0.00017479,2]
[388632821,1759278633326,-189.36120107,0.00017479,2]
[388632822,1759278633335,-177.86724484,0.00017487,2]
[388632823,1759278633344,-1234.20345929,0.00017496,2]
[388632824,1759278633353,-203.47304587,0.00017496,2]
[388632825,1759278633362,-1234.20345929,0.00017499,2]
[388632826,1759278633371,-177.86724484,0.00017499,2]
[388632827,1759278633381,-309.51813282,0.00017499,2]
[388632828,1759278633390,-2500.0,0.000175,2]
[388632829,1759278633400,-2000.0,0.00017511,2]
[388632830,1759278633409,-1679.02913498,0.00017563,2]
[388632831,1759278633418,-2000.0,0.00017643,2]
[388632832,1759278633427,-1646.8447071,0.00017643,2]
[388632833,1759278633436,-2297.0854154,0.0001789,2]
[388632834,1759278633446,-159.99,0.00017927,2]
[388632835,1759278633456,-370.35923647,0.00018451,2]
[388632836,1759278633465,-275.49812578,0.000185,2]
[388632837,1759278633474,-519.06529773,0.000185,2]
[388632838,1759278633484,-420.0,0.00018567,2]
[388632839,1759278633493,-275.49812578,0.000186,2]
[388632840,1759278633502,-519.06529773,0.000186,2]
[388632841,1759278633511,-1680.0,0.00018659,2]
[388632842,1759278633521,-300.0,0.00018699,2]
[388632843,1759278633531,-248.34623788,0.00018699,2]
[388632844,1759278633540,-1367.5653135,0.00018699,2]
[388632845,1759278633549,-150.0,0.000187,2]
[388632846,1759278633558,-275.49812578,0.000188,2]
[388632847,1759278633567,-519.06529773,0.000188,2]
[388632848,1759278633581,-345.28232991,0.000188,2]
[388632849,1759278633590,-275.49812578,0.00019,2]
[388632850,1759278633599,-519.06529773,0.00019,2]
[388632851,1759278633608,-159.99,0.00019122,2]
[388632852,1759278633617,-275.49812578,0.000192,2]
[388632853,1759278633626,-519.06529773,0.000192,2]
[388632854,1759278633636,-151.0,0.00019226,2]
[388632855,1759278633645,-151.0,0.00019226,2]
[388632856,1759278633654,-151.0,0.00019226,2]
[388632857,1759278633663,-151.0,0.00019226,2]
[388632858,1759278633672,-151.0,0.00019226,2]
[388632859,1759278633681,-151.0,0.00019226,2]
[388632860,1759278633690,-151.0,0.00019226,2]
[388632861,1759278633699,-151.0,0.00019226,2]
[388632862,1759278633708,-151.0,0.00019226,2]
[388632863,1759278633718,-151.0,0.00019226,2]
[388632864,1759278633727,-151.0,0.00019226,2]
[388632865,1759278633736,-151.0,0.00019226,2]
[388632866,1759278633746,-151.0,0.00019226,2]
[388632867,1759278633755,-151.0,0.00019226,2]
[388632868,1759278633765,-151.0,0.00019226,2]
[388632869,1759278633774,-151.0,0.00019226,2]
[388632870,1759278633783,-151.0,0.00019226,2]
[388632871,1759278633793,-500.0,0.00019226,2]
[388632872,1759278633801,-151.0,0.00019226,2]
[388632873,1759278633811,-151.0,0.00019226,2]
[388632874,1759278633820,-152.87491504,0.00019226,2]
[388632875,1759278633829,-2143.594999,0.00019232,2]
[388632876,1759278633838,-1070.815176,0.00019232,2]
[388632877,1759278633847,-2515.158291,0.00019232,2]
[388632878,1759278633856,-150.820849,0.00019232,2]
[388632879,1759278633865,-195.0,0.00019237,2]
[388632880,1759278633874,-2000.0,0.00019237,2]
[388632881,1759278633884,-2500.0,0.00019237,2]
[388632882,1759278633893,-1349.4,0.00019395,2]
[388632883,1759278633902,-207.0,0.00019397,2]
[388632884,1759278633912,-1584.0,0.00019409,2]
[388632885,1759278633921,-363.676,0.00019409,2]
[388632886,1759278633930,-176.06,0.00019409,2]
[388632887,1759278633940,-814.0,0.00019409,2]
[388632888,1759278633950,-4233.0,0.00019409,2]
[388632889,1759278633959,-1180.0,0.00019409,2]
[388632890,1759278633968,-900.0,0.00019409,2]
[388632891,1759278633977,-2035.0,0.00019409,2]
[388632892,1759278633987,-10956.51122924,0.000195,2]
[388632893,1759278633997,-207.0,0.00019671,2]
[388632894,1759278634007,-1000.0,0.00019701,2]
[388632895,1759278634363,-546.1399592,0.00019807,2]
[388632896,1759278634388,-322.6107,0.00019815,2]
[388632897,1759278634398,-4393.28218748,0.00019815,2]
[388632898,1759278634407,-670.58624095,0.00019815,2]
[388632899,1759278634416,-500.0,0.00019815,2]
[388632900,1759278634425,-500.0,0.00019815,2]
[388632901,1759278634435,-500.0,0.00019815,2]
[388632902,1759278634444,-500.0,0.00019815,2]
[388632903,1759278634454,-500.0,0.00019815,2]
[388632904,1759278634464,-644.79446246,0.00019815,2]
[388632905,1759278634473,-500.0,0.00019815,2]
[388632906,1759278634483,-500.0,0.00019815,2]
[388632907,1759278634492,-500.0,0.00019815,2]
[388632908,1759278634502,-500.0,0.00019815,2]
[388632909,1759278634511,-500.0,0.00019815,2]
[388632910,1759278634520,-355.40832282,0.00019815,2]
[388632911,1759278634530,-239.84119403,0.00019815,2]
[388632912,1759278634540,-1230.05,0.000199,7]
[388632913,1759278634549,-207.0,0.00019945,2]
[388632914,1759278634559,-8300.0,0.0002,4]
[388632915,1759278634569,-700.0,0.00020017,2]
[388632916,1759278634583,-1300.0,0.0002014,2]
[388632917,1759278634591,-207.0,0.00020219,2]
[388632918,1759278634600,-587.0,0.00020279,2]
[388632919,1759278634610,-159.99,0.00020317,2]
[388632920,1759278634620,-168.0,0.000204,2]
[388632921,1759278634630,-168.0,0.00020413,2]
[388632922,1759278634639,-165.95,0.00020425,2]
[388632923,1759278634650,-207.02,0.00020493,2]
[388632924,1759278634659,-150.99999963,0.000205,2]
[388632925,1759278634668,-289.67,0.0002053,2]
[388632926,1759278634677,-168.0,0.0002056,2]
[388632927,1759278634686,-168.0,0.00020632,2]
[388632928,1759278634695,-3580.4549,0.0002075,2]
[388632929,1759278634705,-1000.0,0.0002075,2]
[388632930,1759278634714,-168.0,0.00020818,2]
[388632931,1759278634724,-18547.28794944,0.00020849,2]
[388632932,1759278634734,-1026.8402,0.0002086,2]
[388632933,1759278634743,-1000.0,0.00020986,2]
[388632934,1759278634753,-168.0,0.00021033,2]
[388632935,1759278634763,-188.77,0.00021039,2]
[388632936,1759278634773,-334.5472959,0.00021184,2]
[388632937,1759278634783,-168.0,0.00021299,2]
[388632938,1759278634792,-6273.15,0.0002137,2]
[388632939,1759278634801,-700.0,0.00021387,2]
[388632940,1759278634810,-1300.0,0.0002151,2]
[388632941,1759278634819,-159.99,0.00021512,2]
[388632942,1759278634828,-1000.0,0.00021773,2]
[388632943,1759278634837,-168.0,0.00021911,2]
[388632944,1759278634846,-5000.0,0.00021918,2]
[388632945,1759278634855,-200.0,0.00021918,2]
[388632946,1759278634864,-168.0,0.00021933,2]
[388632947,1759278634874,-867.13,0.00021945,30]
[388632948,1759278634883,-614.86,0.00022,2]
[388632949,1759278634892,-700.0,0.00022093,2]
[388632950,1759278634901,-600.0,0.0002211,2]
[388632951,1759278634911,-823.0,0.00022149,2]
[388632952,1759278634920,-168.0,0.00022164,2]
[388632953,1759278634929,-7795.13166829,0.00022309,2]
[388632954,1759278634939,-250.0,0.0002233,2]
[388632955,1759278634948,-1584.0,0.00022409,2]
[388632956,1759278634957,-1180.0,0.00022409,2]
[388632957,1759278634967,-900.0,0.00022409,2]
[388632958,1759278634977,-168.0,0.00022419,2]
[388632959,1759278634986,-522.24,0.000225,2]
[388632960,1759278634995,-346.92554585,0.00022553,2]
[388632961,1759278635006,-477.61701909,0.00022554,2]
[388632962,1759278635015,-156.74138361,0.00022554,2]
[388632963,1759278635025,-1000.0,0.0002256,2]
[388632964,1759278635034,-600.0,0.00022658,2]
[388632965,1759278635044,-700.0,0.00022757,2]
[388632966,1759278635054,-1300.0,0.0002288,2]
[388632967,1759278635063,-1831.43,0.000229,2]
[388632968,1759278635073,-216.23580106,0.00023,2]
[388632969,1759278635082,-190.75110517,0.00023,2]
[388632970,1759278635091,-400.0,0.00023014,2]
[388632971,1759278635100,-188.77,0.00023143,2]
[388632972,1759278635109,-7795.1316682,0.00023152,2]
[388632973,1759278635118,-700.0,0.00023189,2]
[388632974,1759278635127,-216.23580106,0.000232,2]
[388632975,1759278635136,-190.75110517,0.000232,2]
[388632976,1759278635145,-600.0,0.00023206,2]
[388632977,1759278635154,-1000.0,0.00023347,2]
[388632978,1759278635163,-614.86,0.00023368,2]
[388632979,1759278635173,-216.23580106,0.000235,2]
[388632980,1759278635182,-190.75110517,0.000235,2]
[388632981,1759278635191,-396.0,0.000235,2]
[388632982,1759278635201,-216.23580106,0.000237,2]
[388632983,1759278635210,-600.0,0.00023754,2]
[388632984,1759278635219,-1280.43,0.00023836,2]
[388632985,1759278635229,-216.23580106,0.000239,2]
[388632986,1759278635238,-359.76179104,0.00023922,2]
[388632987,1759278635247,-7795.1316682,0.00023996,2]
[388632988,1759278635256,-5000.00708862,0.00024,5]
[388632989,1759278635265,-600.0,0.0002411,2]
[388632990,1759278635275,-700.0,0.00024127,2]
[388632991,1759278635284,-1000.0,0.00024134,2]
[388632992,1759278635293,-3164.6618767,0.00024184,2]
[388632993,1759278635302,-1152.0,0.00024192,2]
[388632994,1759278635311,-1208.36212786,0.0002425,2]
[388632995,1759278635320,-700.0,0.00024285,2]
[388632996,1759278635329,-151.0,0.00024291,7]
[388632997,1759278635338,-83782.0301866,0.00024294,2]
[388632998,1759278635347,-600.0,0.00024302,2]
[388632999,1759278635356,-300.38,0.00024308,2]
[388633000,1759278635365,-887.3602764,0.00024594,2]
[388633001,1759278635374,-209.01159,0.0002465,2]
[388633002,1759278635383,-32846.72841247,0.00024651,2]
[388633003,1759278635392,-1364.0,0.00024657,2]
[388633004,1759278635402,-1000.0,0.00024658,2]
[388633005,1759278635411,-388.0,0.0002468,2]
[388633006,1759278635420,-614.86,0.00024736,2]
[388633007,1759278635429,-180.0,0.0002475,2]
[388633008,1759278635438,-150.0,0.00024776,2]
[388633009,1759278635447,-150.0,0.00024776,2]
[388633010,1759278635456,-500.0,0.00024776,2]
[388633011,1759278635465,-150.0,0.00024776,2]
[388633012,1759278635474,-150.0,0.00024776,2]
[388633013,1759278635483,-150.0,0.00024776,2]
[388633014,1759278635492,-150.0,0.00024776,2]
[388633015,1759278635501,-150.0,0.00024776,2]
[388633016,1759278635511,-150.0,0.00024776,2]
[388633017,1759278635520,-150.0,0.00024776,2]
[388633018,1759278635529,-243.39103576,0.00024776,2]
[388633019,1759278635538,-150.0,0.00024776,2]
[388633020,1759278635547,-150.0,0.00024776,2]
[388633021,1759278635556,-150.0,0.00024776,2]
[388633022,1759278635565,-150.0,0.00024776,2]
[388633023,1759278635576,-150.0,0.00024776,2]
[388633024,1759278635586,-150.0,0.00024776,2]
[388633025,1759278635595,-500.0,0.00024776,2]
[388633026,1759278635606,-150.0,0.00024776,2]
[388633027,1759278635615,-214.0,0.000248,2]
[388633028,1759278635624,-143578.357608,0.000248,3]
[388633029,1759278635634,-226.291844,0.000248,7]
[388633030,1759278635644,-151.0,0.000248,7]
[388633031,1759278635653,-293.467016,0.000248,7]
[388633032,1759278635662,-297.360964,0.000248,7]
[388633033,1759278635671,-151.0,0.000248,7]
[388633034,1759278635679,-151.0,0.000248,7]
[388633035,1759278635688,-180.932052,0.000248,7]
[388633036,1759278635697,-163.605264,0.000248,7]
[388633037,1759278635706,-163.605264,0.000248,7]
[388633038,1759278635715,-151.0,0.000248,7]
[388633039,1759278635724,-151.0,0.000248,7]
[388633040,1759278635734,-500.0,0.00024811,7]
[388633041,1759278635743,-7795.1316682,0.00024839,2]
[388633042,1759278635752,-600.0,0.0002485,2]
[388633043,1759278635761,-373.0060337,0.000249,2]
[388633044,1759278635771,-3667.11908447,0.000249,2]
[388633045,1759278635779,-206.1726232,0.00024925,2]
[388633046,1759278635789,-1000.0,0.00024932,7]
[388633047,1759278635798,-311.0,0.00024932,7]
[388633048,1759278635807,-573.0,0.00024932,7]
[388633049,1759278635817,-1000.0,0.00024947,7]
[388633050,1759278635826,-161.19485015,0.00024959,2]
[388633051,1759278635836,-1000.0,0.00024963,7]
[388633052,1759278635845,-1000.0,0.00024978,7]
[388633053,1759278635854,-26745.8709442,0.0002499,3]
[388633054,1759278635863,-1000.0,0.00024994,7]
[388633055,1759278635874,-1800.0,0.00025,5]
[388633056,1759278635884,-1378.05,0.00025,7]
[388633057,1759278635893,-1586.13,0.00025,7]
[388633058,1759278635906,-300.0,0.00025,2]
[388633059,1759278635915,-300.0,0.00025,2]
[388633060,1759278635924,-150.0,0.00025,2]
[388633061,1759278635934,-5814.96,0.00025,7]
[388633062,1759278635943,-9422.65,0.00025,7]
[388633063,1759278635953,-1032.72,0.00025,7]
[388633064,1759278635963,-150.0,0.00025,2]
[388633065,1759278635973,-150.0,0.00025,2]
[388633066,1759278635982,-150.0,0.00025,2]
[388633067,1759278635991,-150.0,0.00025,2]
[388633068,1759278636000,-150.0,0.00025,2]
[388633069,1759278636009,-150.0,0.00025,2]
[388633070,1759278636018,-150.0,0.00025,2]
[388633071,1759278636027,-150.0,0.00025,2]
[388633072,1759278636036,-150.0,0.00025,2]
[388633073,1759278636045,-150.0,0.00025,2]
[388633074,1759278636054,-150.0,0.00025,2]
[388633075,1759278636064,-249.871,0.00025,2]
[388633076,1759278636072,-931.0,0.00025,3]
[388633077,1759278636082,-311.0,0.00025,7]
[388633078,1759278636091,-573.0,0.00025,7]
[388633079,1759278636101,-1000.0,0.00025009,7]
[388633080,1759278636111,-35894.5894021,0.0002502,3]
[388633081,1759278636120,-1000.0,0.00025025,7]
[388633082,1759278636130,-151.0,0.0002504,7]
[388633083,1759278636139,-151.0,0.0002504,7]
[388633084,1759278636149,-151.0,0.0002504,7]
[388633085,1759278636158,-196.836822,0.0002504,7]
[388633086,1759278636167,-151.0,0.0002504,7]
[388633087,1759278636176,-1000.0,0.0002504,7]